bitfinex-derivatives/quotes_BTCF0:USTF0_20250822
["timestamp","ask_amount","ask_price","bid_price","bid_amount"]
[1755870621216,0.01968065,112730.0,112720.0,1.02972547]
[1755870621815,0.51585747,112750.0,112740.0,0.05735]
[1755870622110,0.09253747,112750.0,112740.0,0.78353547]
[1755870622320,0.05811,112750.0,112740.0,0.78353547]
[1755870622614,0.15091109,112750.0,112740.0,0.05605]
[1755870622814,0.15091109,112750.0,112740.0,0.1134]
[1755870623322,0.15291109,112750.0,112740.0,0.1134]
[1755870623914,0.15291109,112750.0,112740.0,0.11344]
[1755870624422,0.17247334,112750.0,112740.0,0.11344]
[1755870624721,0.17647334,112750.0,112740.0,0.11344]
[1755870625315,0.17647334,112750.0,112740.0,0.78357547]
[1755870626024,0.17647334,112750.0,112740.0,0.11344]
[1755870626511,0.42647334,112750.0,112740.0,0.09307]
[1755870626919,0.49751192,112750.0,112740.0,0.09307]
[1755870627120,0.49751192,112750.0,112740.0,0.05881]
[1755870627316,1.16844739,112750.0,112740.0,0.00024]
[1755870627521,1.23203775,112750.0,112740.0,0.00024]
[1755870627822,1.23123775,112750.0,112740.0,0.00024]
[1755870628015,0.9812382,112750.0,112740.0,0.03572]
[1755870628215,0.31110273,112750.0,112740.0,0.09307]
[1755870628517,0.24751237,112750.0,112740.0,0.11344]
[1755870629023,0.9812382,112750.0,112740.0,0.05609]
[1755870629216,0.9812382,112750.0,112740.0,0.00024]
[1755870629619,0.8920582,112750.0,112720.0,0.05585]
[1755870629820,0.11326,112730.0,112720.0,0.03548]
[1755870630020,0.0638827,112730.0,112720.0,0.78333547]
[1755870630222,0.0195627,112730.0,112720.0,0.78333547]
[1755870630415,0.29154003,112750.0,112740.0,0.02309]
[1755870630618,0.21340269,112750.0,112740.0,0.74907547]
[1755870631020,0.21340269,112750.0,112740.0,0.78333547]
[1755870631021,0.20940269,112750.0,112740.0,0.78333547]
[1755870631220,0.20940269,112750.0,112740.0,0.1132]
[1755870631422,0.24351269,112750.0,112740.0,0.05585]
[1755870631621,0.24351269,112750.0,112730.0,0.09011]
[1755870631816,0.11326,112740.0,112730.0,0.1132]
[1755870632020,0.13282302,112740.0,112730.0,0.1132]
[1755870632222,0.01956302,112740.0,112730.0,0.3632]
[1755870632421,0.09871302,112740.0,112730.0,0.3632]
[1755870632621,0.13282302,112740.0,112730.0,0.3632]
[1755870632821,0.13282302,112740.0,112730.0,0.3634]
[1755870633228,0.13282302,112740.0,112730.0,0.36344]
[1755870634536,0.04284302,112740.0,112730.0,1.03357547]
[1755870634825,0.01956302,112740.0,112730.0,1.03357547]
[1755870635325,0.01956302,112740.0,112730.0,1.12309367]
[1755870635527,0.07103858,112750.0,112740.0,0.1132]
[1755870635730,0.54502036,112760.0,112740.0,0.1134]
[1755870636028,0.54502036,112760.0,112750.0,0.1132]
[1755870636029,0.62345036,112760.0,112750.0,0.1132]
[1755870636221,0.62345036,112760.0,112750.0,0.1134]
[1755870636428,0.62345036,112760.0,112750.0,0.05605]
[1755870636627,1.54358583,112760.0,112750.0,0.0002]
[1755870637132,1.58121112,112760.0,112750.0,0.0002]
[1755870637427,1.99818076,112760.0,112750.0,0.0002]
[1755870637626,1.99818076,112760.0,112730.0,4e-05]
[1755870637627,0.78419547,112740.0,112730.0,4e-05]
[1755870637832,0.9201952,112740.0,112730.0,4e-05]
[1755870638022,0.05587,112720.0,112710.0,0.05585]
[1755870638223,0.78339547,112720.0,112700.0,0.05467]
[1755870638529,0.05515,112720.0,112710.0,0.78333547]
[1755870638733,0.03411,112730.0,112720.0,0.1132]
[1755870638930,0.03483,112730.0,112720.0,0.71359547]
[1755870639132,0.12962002,112740.0,112730.0,0.04346]
[1755870639431,0.76564549,112740.0,112710.0,0.02037]
[1755870639628,0.11326,112730.0,112720.0,0.03548]
[1755870639825,0.11326,112720.0,112710.0,0.09011]
[1755870640025,0.07843,112720.0,112710.0,0.1132]
[1755870640229,0.05739,112730.0,112720.0,0.1132]
[1755870640534,0.09222,112720.0,112710.0,0.03548]
[1755870640827,0.78339547,112720.0,112710.0,0.0002]
[1755870641132,0.11326,112720.0,112710.0,0.1134]
[1755870642028,1.03339547,112720.0,112710.0,0.03568]
[1755870642232,0.36326,112720.0,112710.0,0.00024]
[1755870642424,0.36326,112720.0,112710.0,0.05759]
[1755870642730,0.36326,112720.0,112710.0,0.11344]
[1755870643129,0.36326,112720.0,112710.0,0.03572]
[1755870643426,1.03339547,112720.0,112710.0,0.00024]
[1755870643832,1.10309015,112720.0,112710.0,0.00024]
[1755870644030,1.10409015,112720.0,112710.0,0.00024]
[1755870644526,0.11326,112710.0,112700.0,4e-05]
[1755870644736,0.11326,112700.0,112690.0,0.01997248]
[1755870644931,0.78339547,112700.0,112690.0,0.01997248]
[1755870645126,1.03339547,112700.0,112690.0,0.01997248]
[1755870645527,0.36326,112700.0,112690.0,0.05423248]
[1755870645829,0.11326,112700.0,112690.0,0.05423248]
[1755870646025,0.11326,112700.0,112690.0,0.11280248]
[1755870646232,0.11326,112700.0,112690.0,0.38417248]
[1755870646528,0.05587,112710.0,112690.0,0.38417248]
[1755870646730,0.09222,112710.0,112700.0,0.1132]
[1755870646928,0.05811,112710.0,112700.0,0.1132]
[1755870647329,0.11294,112710.0,112700.0,0.1132]
[1755870647526,0.01944928,112710.0,112700.0,0.96421547]
[1755870647726,0.01944928,112710.0,112700.0,1.03076547]
[1755870648029,0.10783928,112710.0,112700.0,0.11063]
[1755870648228,0.12875928,112710.0,112700.0,0.11063]
[1755870648433,0.01944928,112710.0,112700.0,0.11063]
[1755870648637,0.01944928,112710.0,112700.0,0.78076547]
[1755870649232,0.01944928,112710.0,112700.0,0.78080547]
[1755870649433,0.01944928,112710.0,112700.0,1.03080547]
[1755870649633,0.01944928,112710.0,112700.0,1.03180547]
[1755870650227,0.01944928,112710.0,112700.0,0.36267]
[1755870650427,0.01944928,112710.0,112700.0,1.03280547]
[1755870650633,0.01944928,112710.0,112700.0,1.12154737]
[1755870650832,0.01944928,112710.0,112700.0,1.03280547]
[1755870651132,0.01944928,112710.0,112700.0,1.03180547]
[1755870651433,0.01944928,112710.0,112700.0,0.36167]
[1755870651629,0.03391,112740.0,112730.0,0.0212]
[1755870651834,0.08839,112740.0,112730.0,0.10874]
[1755870652136,0.08839,112740.0,112730.0,0.35874]
[1755870652334,0.55591,112750.0,112740.0,0.10854]
[1755870652528,0.55591,112750.0,112740.0,0.10874]
[1755870653038,0.05448,112750.0,112740.0,0.35874]
[1755870654034,0.10931,112750.0,112740.0,0.35874]
[1755870655232,0.10931,112750.0,112740.0,0.10874]
[1755870655933,1.02944547,112750.0,112740.0,0.03432]
[1755870656135,0.36031,112750.0,112740.0,0.03432]
[1755870656438,0.36031,112750.0,112740.0,0.08775]
[1755870656737,1.03044547,112750.0,112740.0,0.0002]
[1755870656931,1.02944547,112750.0,112740.0,0.0002]
[1755870657238,1.95576547,112750.0,112740.0,0.0002]
[1755870657830,0.78044547,112750.0,112740.0,0.0214]
[1755870658027,0.78044547,112750.0,112740.0,0.08775]
[1755870658231,0.78044547,112750.0,112740.0,0.03432]
[1755870658426,0.11031,112750.0,112740.0,0.03432]
[1755870658636,0.78044547,112750.0,112740.0,0.03432]
[1755870658939,0.11031,112750.0,112740.0,0.03432]
[1755870659239,0.78044547,112750.0,112740.0,0.03432]
[1755870660336,0.78044547,112750.0,112740.0,0.0002]
[1755870660533,1.03044547,112750.0,112740.0,0.0002]
[1755870660734,0.36031,112750.0,112740.0,0.0002]
[1755870660936,1.03044547,112750.0,112740.0,0.0002]
[1755870661433,0.07811,112750.0,112740.0,0.0214]
[1755870661639,0.61031,112750.0,112740.0,0.10874]
[1755870663338,0.11031,112750.0,112740.0,0.10874]
[1755870663542,0.12956285,112750.0,112740.0,0.10874]
[1755870664429,0.12956285,112750.0,112740.0,0.05531]
[1755870664741,0.79969832,112750.0,112740.0,0.10874]
[1755870665034,1.04969832,112750.0,112740.0,0.05552]
[1755870665241,0.37956285,112750.0,112740.0,0.03432]
[1755870665440,1.04969832,112750.0,112740.0,0.03432]
[1755870665640,1.04969832,112750.0,112740.0,0.0002]
[1755870665841,1.04969832,112750.0,112720.0,0.10854]
[1755870665842,0.02228,112730.0,112720.0,0.10854]
[1755870666045,0.12856285,112730.0,112720.0,0.10854]
[1755870666338,0.10931,112720.0,112710.0,0.10854]
[1755870666533,0.12856285,112720.0,112710.0,0.10854]
[1755870666931,0.79769832,112720.0,112710.0,0.05511]
[1755870667139,0.07373285,112720.0,112710.0,0.05343]
[1755870667441,0.07373285,112720.0,112710.0,0.10854]
[1755870667639,0.07273285,112720.0,112710.0,0.11154]
[1755870667846,0.07273285,112720.0,112710.0,0.36154]
[1755870668044,1.02677832,112720.0,112710.0,0.003]
[1755870668736,1.95077832,112720.0,112710.0,0.005]
[1755870668936,0.08839,112710.0,112700.0,4e-05]
[1755870669141,0.79869832,112710.0,112700.0,0.00024]
[1755870670044,1.05168285,112710.0,112700.0,0.00024]
[1755870670237,0.12956285,112710.0,112700.0,0.08779]
[1755870670442,0.12956285,112710.0,112700.0,0.10878]
[1755870671144,0.79969832,112710.0,112700.0,0.00024]
[1755870671539,0.79969832,112710.0,112700.0,0.05367]
[1755870671735,0.09736285,112710.0,112700.0,0.10878]
[1755870671937,0.12956285,112710.0,112700.0,0.35878]
[1755870672337,0.09565285,112710.0,112700.0,0.35878]
[1755870672538,0.13056285,112710.0,112700.0,0.35878]
[1755870674155,0.02125285,112710.0,112700.0,1.02891547]
[1755870674544,0.07573285,112710.0,112700.0,0.35878]
[1755870674845,0.13056285,112710.0,112700.0,0.35878]
[1755870675748,0.02125285,112710.0,112700.0,1.02891547]
[1755870676850,0.02125285,112710.0,112700.0,0.35878]
[1755870677245,0.02125285,112710.0,112700.0,1.02891547]
[1755870677553,0.02125285,112710.0,112700.0,0.35878]
[1755870677752,0.02125285,112710.0,112700.0,0.4483218]
[1755870677948,0.02125285,112710.0,112700.0,1.11845727]
[1755870678140,0.08483,112740.0,112700.0,1.11845727]
[1755870678347,0.10623,112740.0,112730.0,0.02257]
[1755870678644,0.10623,112740.0,112730.0,0.10896]
[1755870679949,0.77936547,112740.0,112730.0,0.03329]
[1755870680550,0.10923,112740.0,112730.0,0.06611]
[1755870680855,0.77936547,112740.0,112730.0,0.10896]
[1755870681547,0.11023,112740.0,112730.0,0.10896]
[1755870682146,0.11023,112740.0,112730.0,0.03329]
[1755870682147,0.78036547,112740.0,112730.0,0.03329]
[1755870682549,1.03036547,112740.0,112730.0,0.0002]
[1755870682754,1.95224547,112740.0,112730.0,0.0002]
[1755870683142,0.36023,112740.0,112730.0,0.02277]
[1755870683351,0.11023,112740.0,112730.0,0.08868]
[1755870683651,0.11023,112740.0,112730.0,0.10896]
[1755870684755,0.07816,112740.0,112730.0,0.10896]
[1755870684946,0.11023,112740.0,112730.0,0.10896]
[1755870686554,0.004,112740.0,112730.0,0.10896]
[1755870686749,0.05747,112740.0,112730.0,0.10896]
[1755870686953,0.004,112740.0,112730.0,1.02909547]
[1755870687155,0.004,112740.0,112730.0,0.35896]
[1755870687653,1.03036547,112740.0,112730.0,0.0002]
[1755870688047,0.04219,112720.0,112700.0,0.02032]
[1755870688351,0.77636547,112710.0,112700.0,0.06595]
[1755870688655,0.77636547,112710.0,112700.0,4e-05]
[1755870688956,1.02716547,112710.0,112700.0,4e-05]
[1755870689358,1.12667815,112710.0,112700.0,4e-05]
[1755870689659,0.79184815,112710.0,112690.0,4e-05]
[1755870689854,1.69740547,112700.0,112690.0,4e-05]
[1755870690059,1.69640547,112700.0,112690.0,4e-05]
[1755870690357,1.71559338,112700.0,112690.0,4e-05]
[1755870690659,1.04545791,112700.0,112690.0,4e-05]
[1755870690857,1.71559338,112700.0,112690.0,4e-05]
[1755870691359,1.04545791,112700.0,112690.0,4e-05]
[1755870691560,0.12441791,112700.0,112690.0,0.0559]
[1755870691853,0.12441791,112700.0,112690.0,0.08872]
[1755870692056,0.19610662,112700.0,112690.0,0.109]
[1755870692451,0.79355338,112700.0,112690.0,0.05361]
[1755870692656,0.79355338,112700.0,112690.0,0.00024]
[1755870692657,1.04355338,112700.0,112690.0,0.00024]
[1755870693054,1.04355338,112700.0,112690.0,0.00124]
[1755870694352,1.04435338,112700.0,112690.0,0.00124]
[1755870694553,0.03277,112670.0,112660.0,0.07594]
[1755870694753,0.10623,112660.0,112650.0,0.03309]
[1755870694964,0.10623,112650.0,112640.0,0.03309]
[1755870695259,0.10623,112650.0,112640.0,0.06591]
[1755870695460,0.10623,112650.0,112640.0,0.10876]
[1755870696054,0.10223,112650.0,112640.0,0.10876]
[1755870696256,0.10023,112650.0,112640.0,0.10876]
[1755870696558,0.77036547,112650.0,112640.0,0.05566]
[1755870696753,0.77036547,112650.0,112630.0,0.0531]
[1755870697061,0.06716,112640.0,112630.0,0.10876]
[1755870697250,0.06716,112640.0,112630.0,0.35876]
[1755870697456,0.06716,112640.0,112630.0,0.32594]
[1755870697656,0.73229547,112640.0,112630.0,0.32594]
[1755870697957,0.06216,112640.0,112630.0,0.35896]
[1755870698355,0.09423,112640.0,112630.0,0.35896]
[1755870698556,0.05347,112640.0,112630.0,0.35896]
[1755870698757,0.0214,112640.0,112630.0,0.35896]
[1755870698958,0.11718602,112650.0,112640.0,0.11176]
[1755870699157,0.08624,112650.0,112640.0,0.11196]
[1755870699359,0.05347,112650.0,112640.0,0.36196]
[1755870699763,0.05347,112650.0,112640.0,0.35896]
[1755870700063,0.05305914,112650.0,112640.0,0.02257]
[1755870700361,0.82596386,112650.0,112630.0,0.08619]
[1755870700562,0.05276,112640.0,112630.0,0.07894]
[1755870700965,0.04976,112640.0,112630.0,0.07894]
[1755870701266,0.04976,112640.0,112630.0,0.11176]
[1755870701466,0.80332547,112640.0,112630.0,0.09148]
[1755870701865,0.80332547,112640.0,112630.0,0.05839]
[1755870702362,0.13319,112640.0,112630.0,0.11376]
[1755870702762,0.13319,112640.0,112630.0,0.10876]
[1755870703068,0.13319,112640.0,112630.0,0.11376]
[1755870703269,1.05332547,112640.0,112630.0,0.0052]
[1755870703569,1.05732547,112640.0,112630.0,0.0032]
[1755870703769,1.13098187,112640.0,112630.0,0.0002]
[1755870704066,0.2108464,112640.0,112630.0,0.10896]
[1755870704464,0.1610864,112640.0,112630.0,0.35896]
[1755870704859,0.2138464,112640.0,112630.0,0.35896]
[1755870705063,0.88398187,112640.0,112630.0,0.35896]
[1755870705270,0.005,112640.0,112630.0,1.02909547]
[1755870705468,0.005,112640.0,112630.0,1.11869227]
[1755870705669,0.05276,112660.0,112650.0,0.02257]
[1755870705970,0.0193097,112660.0,112650.0,0.77909547]
[1755870706272,0.1027397,112660.0,112650.0,0.10896]
[1755870706669,0.1077397,112660.0,112650.0,0.10896]
[1755870706866,0.0193097,112660.0,112650.0,0.35896]
[1755870707070,0.0193097,112660.0,112650.0,1.02909547]
[1755870707862,0.0233097,112660.0,112650.0,1.02909547]
[1755870708164,0.0233097,112660.0,112650.0,0.35896]
[1755870708770,0.0233097,112660.0,112650.0,1.02909547]
[1755870709069,0.0313097,112660.0,112650.0,1.03009547]
[1755870709366,0.05902,112680.0,112660.0,0.01894]
[1755870709570,0.13745,112680.0,112670.0,0.11002]
[1755870709771,0.19044,112680.0,112670.0,0.11022]
[1755870710063,0.13642,112680.0,112670.0,0.36022]
[1755870710262,0.08343,112680.0,112670.0,0.36022]
[1755870710459,0.08343,112680.0,112670.0,1.03035547]
[1755870710666,0.17770139,112700.0,112690.0,0.11002]
[1755870710870,0.20456283,112700.0,112690.0,0.11022]
[1755870711063,0.26113139,112700.0,112690.0,0.11022]
[1755870711262,0.15412139,112700.0,112690.0,1.03035547]
[1755870711465,0.20711139,112700.0,112690.0,0.36022]
[1755870711768,0.15412139,112700.0,112690.0,0.36022]
[1755870712279,0.05402,112720.0,112710.0,0.11002]
[1755870712481,0.08410971,112730.0,112710.0,0.72700547]
[1755870712679,0.21684563,112730.0,112720.0,0.78015547]
[1755870712980,0.06554,112740.0,112730.0,0.11002]
[1755870712981,0.06376971,112740.0,112730.0,0.11002]
[1755870713285,0.18573166,112740.0,112730.0,0.11022]
[1755870713579,0.22032071,112740.0,112730.0,0.11022]
[1755870713782,0.25400071,112740.0,112730.0,0.11022]
[1755870713980,0.92413618,112740.0,112730.0,0.11022]
[1755870714281,0.86057547,112740.0,112730.0,0.09128]
[1755870714983,0.92815798,112740.0,112730.0,0.09128]
[1755870715472,1.17815798,112740.0,112730.0,0.0002]
[1755870715672,1.18515798,112740.0,112730.0,0.0002]
[1755870717177,1.12157547,112740.0,112730.0,0.0002]
[1755870717481,1.12237547,112740.0,112730.0,0.0002]
[1755870717684,1.18603827,112740.0,112730.0,0.0002]
[1755870718278,1.25535865,112740.0,112730.0,0.0002]
[1755870718881,0.02113,112720.0,112700.0,0.05387]
[1755870719076,0.69126547,112720.0,112700.0,0.08828]
[1755870719383,0.16931,112720.0,112710.0,0.06934]
[1755870719685,0.19044,112720.0,112710.0,0.11002]
[1755870719878,0.13642,112720.0,112710.0,0.11002]
[1755870720078,0.10456,112720.0,112710.0,0.11002]
[1755870720385,0.10456,112720.0,112710.0,1.11968967]
[1755870720386,0.002,112720.0,112710.0,1.11968967]
[1755870720680,0.04794345,112750.0,112730.0,0.07561]
[1755870720879,0.16898637,112760.0,112750.0,0.07561]
[1755870721085,0.08343,112760.0,112750.0,1.03015547]
[1755870721285,0.10265301,112760.0,112750.0,1.03015547]
[1755870721586,0.01922301,112760.0,112750.0,1.03015547]
[1755870721785,0.01922301,112760.0,112750.0,0.36002]
[1755870722079,0.01922301,112760.0,112750.0,1.03015547]
[1755870722276,0.01922301,112760.0,112750.0,1.03035547]
[1755870723283,0.05408301,112760.0,112750.0,1.03035547]
[1755870723486,0.10565301,112760.0,112750.0,0.36022]
[1755870723988,0.21266301,112760.0,112750.0,0.36022]
[1755870724488,0.21366301,112760.0,112750.0,0.36022]
[1755870724786,1.13379848,112760.0,112750.0,0.0002]
[1755870725484,1.13377041,112760.0,112750.0,0.0002]
[1755870725686,1.13457041,112760.0,112750.0,0.0002]
[1755870725989,0.88377041,112760.0,112750.0,0.0002]
[1755870726685,1.13457041,112760.0,112750.0,0.0002]
[1755870726992,1.13377041,112760.0,112750.0,0.0002]
[1755870727582,1.63377041,112760.0,112750.0,0.0002]
[1755870729689,1.63457041,112760.0,112750.0,0.0002]
[1755870729882,0.96363494,112760.0,112750.0,0.0002]
[1755870730081,2.55465041,112760.0,112750.0,0.0002]
[1755870730279,1.63377041,112760.0,112750.0,0.0002]
[1755870730484,2.55465041,112760.0,112750.0,0.0002]
[1755870732186,2.48991041,112760.0,112730.0,0.05453086]
[1755870732390,0.77714547,112740.0,112720.0,0.03441]
[1755870732591,0.77714547,112730.0,112720.0,0.03441]
[1755870732786,0.77714547,112730.0,112710.0,0.08828]
[1755870732987,0.10701,112720.0,112710.0,0.11002]
[1755870733188,0.92088,112740.0,112710.0,0.11002]
[1755870733387,0.68930665,112740.0,112730.0,0.11002]
[1755870733587,0.68930665,112740.0,112730.0,0.07509]
[1755870733782,0.68930665,112740.0,112730.0,0.05615]
[1755870733981,0.93930665,112740.0,112730.0,0.05615]
[1755870734186,0.93930665,112740.0,112730.0,0.03441]
[1755870734589,0.93930665,112740.0,112730.0,0.05615]
[1755870734791,0.93930665,112740.0,112730.0,0.11002]
[1755870734996,0.93930665,112740.0,112730.0,0.05615]
[1755870735198,0.93930665,112740.0,112730.0,0.03441]
[1755870735392,0.02345,112730.0,112710.0,0.008]
[1755870735698,0.69358547,112720.0,112710.0,0.008]
[1755870735899,0.69358547,112720.0,112710.0,0.0082]
[1755870736097,0.27345,112720.0,112710.0,0.03661]
[1755870736296,0.94358547,112720.0,112710.0,0.03661]
[1755870736595,0.96177863,112720.0,112710.0,0.03461]
[1755870736796,0.96177879,112720.0,112710.0,0.03461]
[1755870736997,0.96177879,112720.0,112710.0,0.03661]
[1755870737601,0.29164332,112720.0,112710.0,0.03661]
[1755870737802,0.94258547,112720.0,112710.0,0.03661]
[1755870737997,0.94258547,112720.0,112710.0,0.03861]
[1755870738501,0.96180007,112720.0,112710.0,0.0022]
[1755870738693,0.96180007,112720.0,112670.0,0.03383]
[1755870738694,0.02107,112710.0,112670.0,0.03383]
[1755870738896,0.67013547,112680.0,112670.0,0.03383]
[1755870739099,0.69120547,112680.0,112670.0,0.08956]
[1755870739305,0.71043738,112680.0,112670.0,0.08956]
[1755870739601,0.04030191,112680.0,112670.0,0.08956]
[1755870739994,0.01923191,112680.0,112670.0,0.08956]
[1755870740194,0.05724191,112680.0,112670.0,0.10886]
[1755870740399,0.05724191,112680.0,112670.0,0.08956]
[1755870740798,0.05724191,112680.0,112670.0,0.09156]
[1755870741201,0.05724191,112680.0,112670.0,0.34156]
[1755870741603,0.72737738,112680.0,112670.0,0.34156]
[1755870742001,0.72737738,112680.0,112670.0,0.36086]
[1755870742195,0.05724191,112680.0,112670.0,0.09176]
[1755870742395,0.05724191,112680.0,112670.0,0.05793]
[1755870742598,0.12779209,112680.0,112670.0,0.05793]
[1755870742903,0.05724191,112680.0,112670.0,0.09176]
[1755870743304,0.72737738,112680.0,112670.0,0.03493]
[1755870743490,0.97737738,112680.0,112670.0,0.0022]
[1755870743694,0.97737738,112680.0,112670.0,0.03493]
[1755870743895,1.89825738,112680.0,112670.0,0.0022]
[1755870744795,0.30724191,112680.0,112670.0,0.05793]
[1755870745003,0.30724191,112680.0,112670.0,0.09176]
[1755870745205,0.97737738,112680.0,112670.0,0.05793]
[1755870746094,0.97737738,112680.0,112670.0,0.03493]
[1755870746294,0.97817738,112680.0,112670.0,0.0022]
[1755870746501,0.97817738,112680.0,112660.0,0.05219584]
[1755870746502,0.90782438,112680.0,112650.0,0.03273]
[1755870746701,0.67013547,112660.0,112650.0,0.14790119]
[1755870746999,0.74142251,112660.0,112650.0,0.14790119]
[1755870747202,0.99222251,112660.0,112630.0,0.07503]
[1755870747404,0.67013547,112640.0,112630.0,0.17090119]
[1755870747608,0.67013547,112640.0,112610.0,0.07503]
[1755870747795,0.67013547,112640.0,112620.0,0.14790119]
[1755870747796,0.09422232,112640.0,112620.0,0.14790119]
[1755870748000,1.58897547,112630.0,112620.0,0.11517119]
[1755870748201,1.59097547,112630.0,112620.0,0.11517119]
[1755870748401,1.59097547,112630.0,112610.0,0.03273]
[1755870748402,2.34097547,112630.0,112610.0,0.03273]
[1755870748601,0.67013547,112620.0,112610.0,0.14790119]
[1755870748805,1.67084,112630.0,112610.0,0.20473119]
[1755870749000,2.09097547,112630.0,112620.0,0.03273]
[1755870749200,1.17013547,112630.0,112620.0,0.03273]
[1755870749406,1.421,112630.0,112620.0,0.03273]
[1755870749708,2.09113547,112630.0,112620.0,0.03273]
[1755870749908,2.09113547,112630.0,112620.0,0.03293]
[1755870750109,0.5,112630.0,112620.0,0.07523]
[1755870750304,1.42013547,112630.0,112620.0,0.19340119]
[1755870750506,1.42013547,112630.0,112620.0,0.0032]
[1755870750710,1.51987125,112630.0,112620.0,0.0032]
[1755870751805,1.51987125,112630.0,112620.0,0.0012]
[1755870752006,0.84973578,112630.0,112620.0,0.0012]
[1755870752208,1.52077578,112630.0,112620.0,0.03293]
[1755870752408,2.19491125,112630.0,112620.0,0.03293]
[1755870753414,2.19487125,112630.0,112620.0,0.05593]
[1755870753814,0.60373578,112630.0,112620.0,0.44040119]
[1755870754015,0.504,112630.0,112620.0,0.44040119]
[1755870754311,1.17413547,112630.0,112620.0,0.42110119]
[1755870754511,0.004,112630.0,112620.0,0.47423119]
[1755870754917,0.004,112630.0,112620.0,1.14436666]
[1755870755105,0.004,112630.0,112620.0,1.23397286]
[1755870755307,1.59109547,112660.0,112640.0,0.0193]
[1755870755517,0.67013547,112670.0,112650.0,0.05683]
[1755870755806,1.59109547,112670.0,112660.0,0.03273]
[1755870756006,1.93882559,112670.0,112660.0,0.0002]
[1755870756211,1.93962559,112670.0,112660.0,0.0002]
[1755870756416,1.93958559,112670.0,112660.0,0.0002]
[1755870756608,1.68878559,112670.0,112660.0,0.0002]
[1755870757011,1.94578559,112670.0,112660.0,0.0002]
[1755870757415,0.60473012,112670.0,112660.0,0.0002]
[1755870757618,1.42788,112670.0,112660.0,0.10906]
[1755870757816,0.507,112670.0,112660.0,0.35906]
[1755870758617,0.52596223,112670.0,112660.0,1.02919547]
[1755870758815,0.007,112670.0,112660.0,1.02919547]
[1755870759016,0.007,112670.0,112660.0,0.35906]
[1755870759215,0.007,112670.0,112660.0,1.02919547]
[1755870759919,0.011,112670.0,112660.0,0.35906]
[1755870760217,0.011,112670.0,112660.0,0.07723]
[1755870760218,0.69311118,112670.0,112660.0,0.07723]
[1755870760519,0.69311118,112670.0,112660.0,0.11106]
[1755870760726,0.02297571,112670.0,112660.0,0.11106]
[1755870761820,0.01997571,112670.0,112660.0,0.36106]
[1755870762207,0.01997571,112670.0,112660.0,1.03119547]
[1755870762413,0.01997571,112670.0,112660.0,0.36106]
[1755870762718,0.01997571,112670.0,112660.0,1.11997007]
[1755870763322,0.001,112670.0,112660.0,0.36106]
[1755870764016,0.67113547,112670.0,112660.0,0.11106]
[1755870764518,1.86055515,112670.0,112660.0,0.0022]
[1755870764822,1.95585374,112670.0,112660.0,0.0022]
[1755870765210,1.95585374,112670.0,112640.0,0.03273]
[1755870765514,0.67013547,112650.0,112630.0,0.03273]
[1755870765713,1.59045547,112640.0,112610.0,0.03383]
[1755870765925,0.92112,112640.0,112620.0,0.03273]
[1755870766117,0.25,112630.0,112610.0,0.03273]
[1755870766317,1.59045547,112620.0,112610.0,0.03273]
[1755870766516,0.92032,112620.0,112610.0,0.08956]
[1755870766714,0.92032,112620.0,112610.0,0.10886]
[1755870767820,0.94765153,112620.0,112610.0,0.10886]
[1755870768019,0.02733153,112620.0,112610.0,0.10886]
[1755870768223,0.01908295,112620.0,112610.0,0.10886]
[1755870768421,0.68921842,112620.0,112610.0,0.05573]
[1755870768726,0.01908295,112620.0,112610.0,0.10793]
[1755870768919,0.27008295,112620.0,112610.0,0.10793]
[1755870769124,0.02008295,112620.0,112610.0,0.35793]
[1755870769326,0.02008295,112620.0,112610.0,1.02806547]
[1755870769629,0.02209338,112620.0,112610.0,0.35793]
[1755870769918,1.86234885,112620.0,112610.0,0.03293]
[1755870770119,1.86372885,112620.0,112610.0,0.03293]
[1755870770913,1.95960088,112620.0,112610.0,0.0002]
[1755870771119,0.00118,112610.0,112590.0,0.03591]
[1755870771322,0.67013547,112600.0,112590.0,0.03591]
[1755870772223,0.67013547,112600.0,112590.0,0.06791]
[1755870772419,1.84017547,112600.0,112590.0,0.03591]
[1755870772621,1.84135547,112600.0,112590.0,0.002]
[1755870772822,1.84135547,112600.0,112580.0,0.06791]
[1755870772823,1.86046809,112600.0,112580.0,0.06791]
[1755870773017,0.67013547,112590.0,112580.0,0.03591]
[1755870773723,0.68725728,112590.0,112580.0,0.03591]
[1755870773922,0.68725728,112590.0,112580.0,0.09068]
[1755870774123,0.68925728,112590.0,112580.0,0.03591]
[1755870774325,0.68925728,112590.0,112580.0,0.03611]
[1755870774924,0.93925728,112590.0,112580.0,0.03611]
[1755870775129,0.26912181,112590.0,112580.0,0.11088]
[1755870775530,0.27012181,112590.0,112580.0,0.11088]
[1755870775744,0.00118,112620.0,112580.0,1.03273837]
[1755870776027,0.00118,112620.0,112610.0,0.78081547]
[1755870776028,0.00504,112620.0,112610.0,0.78081547]
[1755870776324,0.70223889,112630.0,112610.0,0.11088]
[1755870776525,0.01311,112620.0,112610.0,0.04297]
[1755870776726,0.93442547,112620.0,112610.0,0.0002]
[1755870776927,0.93442547,112620.0,112610.0,0.03611]
[1755870777131,1.60520547,112620.0,112610.0,0.11088]
[1755870777332,0.68524547,112620.0,112610.0,0.11088]
[1755870777528,1.43503,112620.0,112610.0,0.11088]
[1755870778228,0.502,112620.0,112610.0,0.36088]
[1755870778631,0.51311,112620.0,112610.0,0.36088]
[1755870778828,1.18324547,112620.0,112610.0,0.36088]
[1755870779033,0.51311,112620.0,112610.0,0.34088]
[1755870779233,0.51711,112620.0,112610.0,0.36088]
[1755870779533,0.01711,112620.0,112610.0,0.36088]
[1755870779934,0.007,112620.0,112610.0,1.11982947]
[1755870780134,0.007,112620.0,112610.0,1.03101547]
[1755870780739,1.66422652,112650.0,112610.0,1.12062947]
[1755870780931,0.00504,112640.0,112630.0,0.11068]
[1755870781138,0.01873,112640.0,112630.0,0.11088]
[1755870781536,0.01873,112640.0,112630.0,0.07888]
[1755870781739,0.26873,112640.0,112630.0,0.09088]
[1755870782037,0.94004547,112640.0,112630.0,0.03611]
[1755870782834,0.94004547,112640.0,112630.0,0.0002]